Cogmind - Beta 13 @@@ ROGUE MODE // 2024.03.31 @ 22:08:06 Player: Alphabethead Result: Destroyed by UM-40X(R) with Subdweller Machine Gun Performance ------------- Evolutions (0) 0 Regions Visited (3) 600 Robots Destroyed (13) 65 Value Destroyed (379) 379 Prototype IDs (2) 40 Alien Tech Used (0) 0 Bonus (0) 0 TOTAL SCORE: 1084 Bonus ------- None Cogmind --------- Core Integrity 0/250 Matter 287/300 Energy 91/100 System Corruption 2% Temperature Cool (0) Movement Core (200) Ox3 Location -10/Subcaves Parts ------- > --- POWER (1) -------- (None) > --- PROPULSION (2) --- (None) > --- UTILITY (2) ------ Medium Storage Unit Structural Scanner > --- WEAPON (2) ------- Light Assault Rifle > --- INVENTORY (10) --- Ion Engine Wheel Signal Interpreter Makeshift Light Armor Plating Scrap Shield Riot Gun Light Assault Rifle Flamer Hammer Peak State ------------ > --- POWER ------------ Light Angular Momentum Engine > --- PROPULSION ------- Wheel Subdweller Monowheel > --- UTILITY ---------- Medium Storage Unit Structural Scanner > --- WEAPON ----------- Light Assault Rifle Light Assault Rifle > --- INVENTORY -------- Ion Engine Light Nuclear Core Wheel Signal Interpreter Scrap Shield Particle Gun Grenade Launcher Flamer Hammer [Rating: 13] Favorites ----------- Power Ion Engine Engine Ion Engine Power Core Light Nuclear Core Propulsion Light Treads Treads Light Treads Wheel Wheel Utility Medium Storage Unit Device Structural Scanner Storage Medium Storage Unit Weapon Light Assault Rifle Ballistic Gun Light Assault Rifle Launcher Grenade Launcher Impact Weapon Hammer Build | -11 -10 -10 -10 ------- Run | Yrd Mat Min Sub Slots Evolved . | . . . . Power . | . . . . Propulsion . | . . . . Utility . | . . . . Weapon . | . . . . Parts Attached 19 | 6 2 8 3 Power 3 | 1 . 1 1 Engine 2 | 1 . . 1 Core 1 | . . 1 . Reactor . | . . . . Propulsion 5 | 2 . 2 1 Treads 2 | 2 . . . Leg . | . . . . Wheel 3 | . . 2 1 Hover . | . . . . Flight . | . . . . Utility 3 | 1 2 . . Device 1 | . 1 . . Storage 2 | 1 1 . . Processor . | . . . . Hackware . | . . . . Protection . | . . . . Artifact . | . . . . Weapon 8 | 2 . 5 1 Energy Gun . | . . . . Energy Cannon . | . . . . Ballistic Gun 6 | 2 . 4 . Ballistic Cannon . | . . . . Launcher 1 | . . . 1 Special Weapon . | . . . . Impact Weapon 1 | . . 1 . Slashing Weapon . | . . . . Piercing Weapon . | . . . . Special Melee Weapon . | . . . . Unidentified Prototypes . | . . . . Parts Lost 8 | . . 4 4 Power 2 | . . 1 1 Propulsion 3 | . . 1 2 Utility . | . . . . Weapon 3 | . . 2 1 Highest Loss Streak 4 | . . 3 4 To Critical Strikes . | . . . . Average Slot Usage (%) 97 | . 95 98 100 Engine 9 | . 14 6 2 Core 4 | . . 7 11 Treads 19 | . 28 18 . Wheel 8 | . . 8 28 Device 12 | . 9 14 14 Storage 14 | . 14 14 14 Ballistic Gun 27 | . 28 27 28 Naked Turns . | . . . . Heaviest Build 22 | 13 19 20 22 Greatest Support 40 | 40 40 40 30 Greatest Overweight (x) 1 | . . . 1 Average Overweight (x) . | . . . . Largest Inventory Capacity 10 | 8 10 10 10 Average Capacity 9 | 7 9 10 10 Most Carried 10 | 6 8 9 10 Average Carried 6 | 3 6 7 9 Final Capacity 10 | 8 10 10 10 Final Carried 10 | 4 8 6 10 Class Distribution -------------------- 100% | Mutant Dominant Class ---------------- Mutant | -10/Materials Mutant | -10/Mines Mutant | -10/Subcaves Resources | -11 -10 -10 -10 ----------- Run | Yrd Mat Min Sub Matter Collected 580 | 230 114 192 44 Remotely . | . . . . Salvage Created 453 | . 174 224 55 Parts 31 | . 17 9 5 Haulers Intercepted . | . . . . Recyclers Shooed 1 | . . 1 . Parts Field Recycled . | . . . . Retrieved Matter . | . . . . Parts Self-Destructed . | . . . . Prevented . | . . . . Kills | -11 -10 -10 -10 ------- Run | Yrd Mat Min Sub Combat Hostiles Destroyed 11 | . 5 5 1 Guns 11 | . 5 5 1 Classes Destroyed 4 | . 3 . 1 Watcher 2 | . 2 . . Swarmer 3 | . 3 . . Grunt 7 | . 2 5 . Subdweller 1 | . . . 1 Best Kill Streak 3 | . 2 3 1 Combat Bots Only 3 | . 2 3 1 Max Kills in Single Turn 1 | . 1 1 1 Gunslinging . | . . . . Exploded . | . . . . Melee . | . . . . Uniques/NPCs Destroyed . | . . . . Combat | -11 -10 -10 -10 -------- Run | Yrd Mat Min Sub Hostile Shots Fired 97 | . 20 45 32 Missed 24 | . 5 8 11 Damage Taken 1220 | . 179 491 550 Core 265 | . 11 92 162 Absorbed by Shields . | . . . . Core Remaining (%) 100 | 100 . . . Volleys Fired 55 | . 22 23 10 Largest 2 | . 2 2 2 Hottest 40 | . 40 40 40 Shots Fired 104 | . 44 43 17 Gun 104 | . 44 43 17 Cannon . | . . . . Launcher . | . . . . Special . | . . . . Kinetic 104 | . 44 43 17 Thermal . | . . . . Explosive . | . . . . Electromagnetic . | . . . . Robot Hit Streak 10 | . 10 7 5 Robot Miss Streak 3 | . 2 3 1 Penetration Max . | . . . . Secondary Targets 1 | . 1 . . Max Gunslinging Chain 1 | . 1 . . Shots Hit Robots 66 | . 25 28 13 Core Hits 30 | . 15 12 3 Critical Kills . | . . . . Critical Parts Destroyed . | . . . . Critical Strikes . | . . . . Melee Attacks 1 | . . 1 . Impact 1 | . . 1 . Slashing . | . . . . Piercing . | . . . . Sneak Attacks . | . . . . Combat Hostiles . | . . . . Follow-up Attacks . | . . . . Damage Inflicted 736 | . 249 382 105 Guns 707 | . 247 355 105 Cannons . | . . . . Explosions . | . . . . Melee . | . . . . Ramming 29 | . 2 27 . Kinetic 707 | . 247 355 105 Thermal . | . . . . Explosive . | . . . . Electromagnetic . | . . . . Impact . | . . . . Slashing . | . . . . Piercing . | . . . . Highest Corruption 2 | . 2 2 2 Average Corruption 2 | . 2 2 2 Corruption Purged . | . . . . Corruption Blocked . | . . . . Effects 16 | . 7 7 2 Message Errors 3 | . 2 1 . Matter Fused 4 | . 1 2 1 Heat Flow Errors 3 | . 2 1 . Energy Discharges 1 | . 1 . . Parts Fused 1 | . . 1 . Data Loss (minor) 3 | . 1 1 1 Alerts 1 | . . 1 . Overload Shots . | . . . . Overflow Damage . | . . . . Projectiles . | . . . . Explosions . | . . . . Melee . | . . . . Knockbacks . | . . . . Impact . | . . . . Kinetic . | . . . . Secondary . | . . . . Self-Inflicted Damage 10 | . . 10 . Shots . | . . . . Rammed 4 | . 1 3 . Targets Rammed 4 | . 1 3 . Kicked . | . . . . Crushed . | . . . . Highest Temperature 274 | . 109 274 . Average Temperature 42 | . 30 48 . Received Heat Transfer 417 | . 78 297 42 Siege Activations . | . . . . Robots Corrupted . | . . . . Combat Hostiles . | . . . . Parts Fried . | . . . . Impact Corruptions 1 | . . 1 . Robots Melted . | . . . . Combat Hostiles . | . . . . Parts Melted . | . . . . Heat Transferred . | . . . . Parts Sabotaged . | . . . . Parts Stolen . | . . . . Parts Stripped . | . . . . Power Chain Reactions . | . . . . Alert | -11 -10 -10 -10 ------- Run | Yrd Mat Min Sub Peak Influence 125 | . 117 125 . Initial 45 | . . 45 . Average 49 | . 63 73 . Maximum Alert Level . | . . . . Low Security (%) 100 | 100 100 100 . Level 1 . | . . . . Level 2 . | . . . . Level 3 . | . . . . Level 4 . | . . . . Level 5 . | . . . . High Security . | . . . . Max Security . | . . . . Squads Dispatched 2 | . 2 . . Investigation 1 | . 1 . . Extermination . | . . . . Reinforcement 1 | . 1 . . Assault . | . . . . Garrison . | . . . . Intercept . | . . . . Searches Triggered . | . . . . Construction Impeded . | . . . . Haulers Reinforced . | . . . . Active Scanning Responses . | . . . . Cargo Convoy Interrupts . | . . . . Stealth | -11 -10 -10 -10 --------- Run | Yrd Mat Min Sub Distress Signals 1 | . 1 . . Communications Jammed . | . . . . Distress Signals . | . . . . Times Spotted 31 | . 11 5 15 Peak Tracking Total 12 | . 4 3 12 Tactical Retreats 3 | . 3 . . Traps | -11 -10 -10 -10 ------- Run | Yrd Mat Min Sub Traps Triggered 2 | . 2 . . Indirectly . | . . . . Trap Hack Attempts . | . . . . Triggered . | . . . . Disarmed . | . . . . Reprogrammed . | . . . . Reused . | . . . . Traps Extracted . | . . . . Installed 1 | . . . 1 Triggered . | . . . . Machines | -11 -10 -10 -10 ---------- Run | Yrd Mat Min Sub Machines Disabled . | . . . . Max in Single Turn . | . . . . Machines Repaired . | . . . . Machines Dismantled . | . . . . Machines Sabotaged . | . . . . Overloaded Fab Kills . | . . . . Hacking | -11 -10 -10 -10 --------- Run | Yrd Mat Min Sub Machines Accessed 4 | . 4 . . Terminals 4 | . 4 . . Fabricators . | . . . . Repair Stations . | . . . . Recycling Units . | . . . . Scanalyzers . | . . . . Garrison Access . | . . . . Total Hacks 9 | . 9 . . Successful 7 | . 7 . . Failed 2 | . 2 . . Catastrophic . | . . . . Database Lockouts . | . . . . Manual . | . . . . Terminals 9 | . 9 . . Fabricators . | . . . . Repair Stations . | . . . . Recycling Units . | . . . . Scanalyzers . | . . . . Garrison Access . | . . . . Terminal Hacks 7 | . 7 . . Prototype ID Bank 1 | . 1 . . Alert Level 2 | . 2 . . Unreport Threat 1 | . 1 . . Locate Traps 1 | . 1 . . Registered Components 1 | . 1 . . Zone Layout 1 | . 1 . . Fabricator Hacks . | . . . . Repair Station Hacks . | . . . . Recycling Unit Hacks . | . . . . Scanalyzer . | . . . . Garrison Access Hacks . | . . . . Unauthorized Hacks . | . . . . Terminals . | . . . . Fabricators . | . . . . Repair Stations . | . . . . Recycling Units . | . . . . Scanalyzers . | . . . . Garrison Access . | . . . . Data Cores Recovered . | . . . . Used . | . . . . Hacking Detections 3 | . 3 . . Full Trace Events . | . . . . Feedback Events . | . . . . Feedback Blocked . | . . . . Robot Schematics Acquired . | . . . . Robots Built . | . . . . Authchips . | . . . . Time . | . . . . Total Robot Build Rating . | . . . . Part Schematics Acquired . | . . . . Parts Built . | . . . . Authchips . | . . . . Time . | . . . . Total Part Build Rating . | . . . . Parts Repaired . | . . . . Time . | . . . . Parts Recycled . | . . . . Recycled Matter . | . . . . Retrieved Matter . | . . . . Retrieved Components . | . . . . Parts Scanalyzed . | . . . . Part Schematics Acquired . | . . . . Parts Damaged . | . . . . Bothacking | -11 -10 -10 -10 ------------ Run | Yrd Mat Min Sub Used RIF Installer . | . . . . Robots Hacked . | . . . . Non-combat . | . . . . Combat . | . . . . Robot Hacks Applied . | . . . . Relay Couplers Released . | . . . . Fabnet Peak Effective % . | . . . . Robots Rewired . | . . . . Allies Hacked . | . . . . Hacks Repelled . | . . . . Allies | -11 -10 -10 -10 -------- Run | Yrd Mat Min Sub Total Allies 1 | . . 1 . Largest Group 1 | . . 1 1 Highest-Rated Group 31 | . . 31 31 Highest-Rated Ally 31 | . . 31 31 Total Orders . | . . . . Ally Attacks 5 | . . . 5 Total Damage 106 | . . . 106 Kills . | . . . . Allies Corrupted . | . . . . Allies Melted . | . . . . Intel | -11 -10 -10 -10 ------- Run | Yrd Mat Min Sub Robot Analysis Total . | . . . . Derelict Logs Recovered 3 | . . 1 2 Drone Launches . | . . . . Drone Recoveries . | . . . . Exploration | -11 -10 -10 -10 ------------- Run | Yrd Mat Min Sub Turns Passed 1628 | 365 580 420 263 Spaces Moved 975 | 127 311 283 254 Core 4 | 4 . . . Treads 567 | 123 311 133 . Legs . | . . . . Wheels 404 | . . 150 254 Hover . | . . . . Flight . | . . . . Fastest Speed 50 | 50 160 80 80 Average Speed 128 | 156 160 117 88 Slowest Speed 160 | 160 160 160 120 Overloaded Moves . | . . . . Propulsion Burnouts . | . . . . Robots Hopped . | . . . . Cave-ins Triggered . | . . . . Exploration Rate (%) 33 | 7 63 50 12 Regions Visited 3 Branch Regions 2 Pre-discovered Areas . | . . . . Known Exits Taken . | . . . . Unknown Exits Taken 3 | 1 1 1 . Scrap Searched 4 | . . 1 3 Spaces Dug . | . . . . Terrain Destroyed . | . . . . Melee . | . . . . Projectile . | . . . . AOE . | . . . . Terrain Rammed . | . . . . Walls Destroyed . | . . . . Machines Disabled . | . . . . Actions | -11 -10 -10 -10 --------- Run | Yrd Mat Min Sub Total 1249 | 293 354 323 279 Wait 164 | 151 8 3 2 Move 972 | 126 310 282 254 Hop . | . . . . Pick Up 27 | 10 8 3 6 Fast Attach . | . . . . Attach 11 | 6 1 4 . Detach . | . . . . Swap 8 | . 1 4 3 Drop 6 | . 3 . 3 Fire 55 | . 22 23 10 Melee 1 | . . 1 . Ram 1 | . . 1 . Kick . | . . . . Crush 3 | . 1 2 . Escape Stasis . | . . . . Rewire . | . . . . Trap 1 | . . . 1 Miscellaneous . | . . . . Route ------- -11/Scrapyard -10/Materials (discovered 2 exits: [*Mat] / [*Min]) -10/Mines (discovered 2 exits: [*Mat] / [*Sub]) -10/Subcaves History --------- Turn | Location | Event 12 | -11/Scrapyard | Discovered new exit (range 16) 366 | -11/Scrapyard | Entered Materials 367 | -10/Materials | Build established: Mutant 554 | -10/Materials | Discovered new exit (range 9) 918 | -10/Materials | Discovered new exit (range 7) 946 | -10/Materials | Entered Mines 1041 | -10/Mines | Learned Materials stockpile data 1256 | -10/Mines | Lost 3 parts (1n2w) 1261 | -10/Mines | Escorted by a lone wolf Derelict 1317 | -10/Mines | Discovered new exit (range 9) 1336 | -10/Mines | Discovered new exit (range 6) 1366 | -10/Mines | Entered Subcaves 1366 | -10/Subcaves | Accompanied by 1 ally 1398 | -10/Subcaves | Disturbed a concealed Subdweller 1508 | -10/Subcaves | Learned Materials interactive machine intel 1608 | -10/Subcaves | Ambushed by swarm of Subdwellers 1608 | -10/Subcaves | Learned location of 1 exit from Materials 1615 | -10/Subcaves | Core integrity fell below 50% 1616 | -10/Subcaves | Ambushed by Subdweller buried in earth 1621 | -10/Subcaves | Core integrity fell below 20% 1629 | -10/Subcaves | Destroyed by UM-40X(R) with Subdweller Machine Gun Last Messages --------------- 01598_ Dropped Particle Gun. 01598_ Acquired Mak. Light Armor Plating. 01608_ Acquired derelict log, extracted data. Data stored: Materials exits (x1). 01609_ 91-T7N(h): "The Subs are coming!" 01609_ L6-MAX(g) destroyed. 01610_ IM-PSI(g) destroyed. 01611_ HV Slug penetrates 66-FNR(R). 01611_ 66-FNR(R) suffers critical hit (Destroy). 01611_ 66-FNR(R) destroyed. 01611_ YH-X3Q(R) suffers critical hit (Destroy). 01614_ 6C-NFY(O) collects matter. 01617_ B2-NTW(R): "FREEEEDUMB!" 01620_ Wheel destroyed. 01621_ System corrupted: Matter fused (-10). 01622_ Sub. Monowheel destroyed. 01622_ Lgt. Angular Momentum Engine destroyed. 01624_ 75-U7H(R) destroyed. 01626_ B2-NTW(R) destroyed. 01629_ Grenade Launcher destroyed. Map ----- +----------------------------------------------------+ | | | | | | | | | | | | | ?????????????????????????????????????????????????? | | ?????????????????????????????????????????????????? | | ?????????????????????????????????????????????????? | | ?????????????????????????????????????????????????? | | ?????????????????????????????????????????????????? | | ?????????????????????????????????????????????????? | | ?????????????????????????????????????????????????? | | ?????????????????????????????????????????????????? | | ?????????????????????????????????????????????????? | | ?????????????????????????????????????????????????? | | ????????????########?????????????????????????????? | | ???????????##########????????????????????????????? | | ???????????### ###??????????????????????????? | | #########??# ########????????????????????? | | ############ ########???????????????????? | | "# ### #;;;;###???????????????????? | | " *%%% ## R [%& ; ; ##???????????????????? | | " [!%! RR%&R * ;#####?????????????????? | | ![= %##; = R =;# #"""???????????????? | | "###; R @ """ "???????????????? | | "# """####;; R O"""???????????????? | | ########?#####R ## ""??????????????? | | #####?????##### # ; ;; ####?? ???????????? | | ????????????######## ##;###??????????????????? | | ?????????????#################???????????????????? | | ??????????????????########### ???????????????????? | | ?????????????????????????????????????????????????? | | ?????????????????????????????????????????????????? | | ?????????????????????????????????????????????????? | | ?????????????????????????????????????????????????? | | ?????????????????????????????????????????????????? | | ?????????????????????????????????????????????????? | | ?????????????????????????????????????????????????? | | ?????????????????????????????????????????????????? | | ?????????????????????????????????????????????????? | | ?????????????????????????????????????????????????? | | ?????????????????????????????????????????????????? | | ?????????????????????????????????????????????????? | | ?????????????????????????????????????????????????? | | ?????????????????????????????????????????????????? | | ?????????????????????????????????????????????????? | | ?????????????????????????????????????????????????? | | ?????????????????????????????????????????????????? | | ?????????????????????????????????????????????????? | +----------------------------------------------------+ Best States ------------- Heat Dissipation 25 Energy Generation 18 Energy Capacity 250 Matter Stores 300 Matter Capacity 300 Sight Range 16 Terrain Scan Density 10 Evasion (%) 44 Recoil Reduction 2 Item Schematics ----------------- None Robot Schematics ------------------ None Fabricated ------------ Nothing Alien Tech Used ----------------- None Achievements -------------- None Challenges ------------ None Game ------ Seed CompactBackupBroadsword Manual? 0 Play Time 00:22:40 Cumulative 5.7 hours Start 2024.03.31 @ 21:44:46 End 2024.03.31 @ 22:08:06 Sessions 1 Manual Loads 0 Difficulty Rogue Special Mode None Game No. 6 Rogue 6 Adventurer 0 Explorer 0 Win Type - Total 0 Types 0/0/0/0/0/0/0/0/0 Lore% 11 Gallery% 11 Achievement% 11 Wizard Run 0 Options --------- Layout 1 ASCII 0 Keyboard 0 Movement Arrows Keybinds 0 Fullscreen 1 Font 24/Smallcaps Map View 76x35 Zoom Use 0% Tactical HUD 1 Map Filters NONE Filters NONE Steam 1 RUN: 20fe6429-c180-4d63-82f4-996c1b02d532